bitfinex/quotes_SOLUSD_20240614
["timestamp","ask_amount","ask_price","bid_price","bid_amount"]
[1718376482597,25.18,145.03,144.97,2.5521]
[1718376482918,25.18,145.03,144.97,5.1043]
[1718376482919,25.2,145.03,144.97,5.1043]
[1718376483097,25.2,145.03,144.9,29.7628]
[1718376483098,25.2,145.03,144.96,7.6569]
[1718376483305,25.2,145.03,144.96,2.5523]
[1718376483520,27.7512,145.03,144.95,22.9725]
[1718376483690,27.7512,145.03,144.96,7.6571]
[1718376483691,25.2,145.03,144.96,7.6571]
[1718376484008,5.1041,144.98,144.89,17.8746]
[1718376484313,100.0,145.0,144.82,22.5127]
[1718376484314,25.2,144.95,144.82,22.5127]
[1718376484511,25.2,144.95,144.73,100.0]
[1718376484512,10.2148,144.89,144.81,17.8676]
[1718376484816,10.2148,144.89,144.72,8.4796]
[1718376484817,25.2,144.82,144.72,8.4796]
[1718376485070,25.2,144.82,144.79,5.1107]
[1718376485341,25.2,144.82,144.7,21.9882]
[1718376485342,25.2,144.82,144.75,2.556]
[1718376485527,25.2,144.82,144.68,20.78]
[1718376485727,25.2,144.82,144.81,25.5505]
[1718376485935,25.2,144.86,144.77,20.78]
[1718376486243,30.307,144.9,144.81,2.5549]
[1718376486535,25.2,144.85,144.74,100.0]
[1718376486741,25.2,144.9,144.83,10.2183]
[1718376486923,25.2,144.9,144.76,10.0]
[1718376487117,25.2,144.9,144.8,7.6656]
[1718376487317,25.2,144.9,144.76,110.0]
[1718376487524,25.2,144.9,144.88,0.17]
[1718376487725,25.2,144.9,144.89,0.17]
[1718376487928,20.9881,144.96,144.89,23.6628]
[1718376488129,20.9881,144.96,144.91,0.17]
[1718376488421,25.2,144.97,144.93,7.6588]
[1718376488620,26.3631,145.03,144.95,0.17]
[1718376488819,25.2,144.99,144.95,0.17]
[1718376489536,25.2,144.99,144.98,0.17]
[1718376489740,25.2,144.99,144.98,8.3361]
[1718376489950,25.2,144.99,144.98,0.34]
[1718376490148,25.2,144.99,144.98,0.68]
[1718376491156,21.2605,145.03,144.98,0.68]
[1718376491364,25.2,145.0,144.94,0.17]
[1718376491528,25.2,145.0,144.94,0.68]
[1718376491929,25.2,145.0,144.92,2.553]
[1718376492165,25.2,145.0,144.94,2.5526]
[1718376492463,25.2,144.96,144.82,26.2760349]
[1718376492754,25.2,144.96,144.85,10.2169]
[1718376492755,25.2,144.92,144.85,10.2169]
[1718376492957,25.2,144.92,144.85,5.1085]
[1718376493262,25.2,144.92,144.88,2.5537]
[1718376493557,21.4159,144.91,144.76,5.51490064]
[1718376493726,21.4159,144.91,144.69,213.36534117]
[1718376493727,25.2,144.85,144.81,2.5549]
[1718376493930,25.2,144.85,144.77,2.5556]
[1718376494151,25.2,144.85,144.68,1.59887545]
[1718376494334,25.2,144.85,144.79,12.7768]
[1718376494647,43.0813,144.85,144.74,17.8932]
[1718376494971,25.2,144.81,144.69,20.78]
[1718376495264,25.2,144.81,144.77,2.5556]
[1718376495467,25.2,144.81,144.77,23.0014]
[1718376495631,25.2,144.81,144.7,20.78]
[1718376495840,25.2,144.81,144.77,2.5556]
[1718376496037,25.2,144.81,144.8,2.5552]
[1718376496232,25.2,144.85,144.77,5.1113]
[1718376496458,25.2,144.85,144.78,7.6666]
[1718376496758,25.2,144.85,144.78,2.5555]
[1718376497141,25.2,144.85,144.76,25.5585]
[1718376497464,25.2,144.81,144.73,7.6694]
[1718376497662,25.2,144.81,144.76,7.6676]
[1718376498032,25.2,144.81,144.75,2.5559]
[1718376498254,25.2,144.81,144.75,12.7804]
[1718376498459,25.2,144.81,144.76,2.5558]
[1718376498636,25.2,144.81,144.75,23.0045]
[1718376498830,25.2,144.81,144.75,2.556]
[1718376499057,25.2,144.81,144.74,7.6684]
[1718376499261,25.2,144.81,144.76,5.1117]
[1718376499439,25.2,144.81,144.77,0.17]
[1718376499646,25.2,144.81,144.79,0.17]
[1718376500044,25.2,144.81,144.79,0.51]
[1718376500246,25.2,144.81,144.79,3.0653]
[1718376500447,25.2,144.81,144.8,2.7252]
[1718376500652,23.9692,144.91,144.82,2.5547]
[1718376500839,25.2,144.87,144.83,0.68]
[1718376501041,25.2,144.87,144.83,3.2346]
[1718376501261,25.2,144.87,144.83,0.68]
[1718376501468,25.2,144.87,144.83,16.008]
[1718376501760,25.2,144.87,144.83,3.2346]
[1718376501937,21.4159,144.91,144.83,3.2347]
[1718376502141,25.2,144.88,144.83,0.68]
[1718376502344,21.4159,144.91,144.83,3.2346]
[1718376502680,25.2,144.87,144.83,0.68]
[1718376503043,25.2,144.88,144.83,0.68]
[1718376504041,25.2,144.88,144.83,8.344]
[1718376504243,25.2,144.88,144.83,0.68]
[1718376506955,25.2,144.88,144.83,3.2347]
[1718376507147,25.2,144.88,144.83,0.68]
[1718376507546,25.2,144.88,144.83,3.2347]
[1718376507747,25.2,144.88,144.83,0.68]
[1718376508271,25.2,144.86,144.83,0.68]
[1718376508673,25.2,144.86,144.83,3.2347]
[1718376508880,25.2,144.86,144.85,2.7243]
[1718376509172,25.2,144.9,144.86,0.17]
[1718376509385,48.1817,144.9,144.85,0.17]
[1718376509557,2.5538,144.89,144.84,0.34]
[1718376510162,27.7536,144.9,144.84,0.34]
[1718376510364,25.2,144.9,144.84,2.8945]
[1718376510673,25.2,144.9,144.84,0.34]
[1718376511484,5.1078,144.88,144.79,7.6661]
[1718376511692,25.2,144.9,144.81,5.11]
[1718376511856,25.2,144.9,144.82,7.6643]
[1718376512171,25.2,144.9,144.82,5.1096]
[1718376512361,25.2,144.9,144.82,25.5483]
[1718376512559,25.2,144.9,144.84,0.17]
[1718376512857,25.26,144.88,144.84,0.34]
[1718376513049,25.26,144.88,144.86,0.17]
[1718376513249,25.26,144.88,144.86,0.34]
[1718376513446,25.26,144.88,144.85,0.34]
[1718376516069,25.26,144.88,144.84,0.17]
[1718376516070,27.8138,144.88,144.8,7.6655]
[1718376516267,25.26,144.88,144.81,2.555]
[1718376516484,25.26,144.88,144.8,22.997]
[1718376516690,25.26,144.88,144.81,2.555]
[1718376517182,25.26,144.88,144.82,0.17]
[1718376517365,25.26,144.88,144.82,0.34]
[1718376517564,25.26,144.88,144.74,30.1160014]
[1718376517873,25.26,144.88,144.81,5.11]
[1718376518070,25.26,144.88,144.82,22.9935]
[1718376518271,25.26,144.88,144.83,2.5546]
[1718376518471,25.26,144.88,144.82,7.6643]
[1718376519088,25.26,144.88,144.83,5.7893]
[1718376519277,25.26,144.88,144.83,8.3439]
[1718376519689,25.26,144.88,144.85,0.17]
[1718376520393,25.26,144.88,144.84,0.17]
[1718376520570,25.26,144.88,144.8,25.5514]
[1718376520904,25.26,144.88,144.81,7.6651]
[1718376521071,27.8138,144.88,144.8,25.5514]
[1718376521390,27.8138,144.88,144.8,7.6655]
[1718376521593,25.26,144.88,144.82,2.5547]
[1718376522099,25.26,144.88,144.83,2.5546]
[1718376522404,25.26,144.9,144.84,0.34]
[1718376522578,25.26,144.9,144.85,0.17]
[1718376522787,32.9204,144.9,144.84,0.34]
[1718376522976,27.8135,144.9,144.83,0.34]
[1718376523175,32.9204,144.9,144.83,0.34]
[1718376523398,40.5808,144.9,144.83,0.34]
[1718376523568,27.8135,144.9,144.83,0.34]
[1718376523899,25.26,144.9,144.83,2.8946]
[1718376524477,27.8134,144.9,144.83,0.34]
[1718376525087,25.26,144.9,144.84,8.0034]
[1718376525299,25.26,144.9,144.84,2.8944]
[1718376525688,7.661,144.89,144.85,0.17]
[1718376525893,50.52,144.9,144.85,0.34]
[1718376526198,25.26,144.9,144.85,0.34]
[1718376526572,30.367,144.9,144.84,0.34]
[1718376526877,2.5536,144.89,144.84,0.34]
[1718376527084,2.5536,144.89,144.83,0.17]
[1718376527280,2.5536,144.89,144.84,0.17]
[1718376527470,50.52,144.9,144.84,0.34]
[1718376527680,50.52,144.9,144.84,2.8944]
[1718376528071,25.26,144.9,144.84,2.8944]
[1718376528272,25.26,144.9,144.84,0.34]
[1718376528466,25.26,144.9,144.84,2.8945]
[1718376528867,25.26,144.9,144.84,0.34]
[1718376529300,25.26,144.9,144.85,0.34]
[1718376529893,25.26,144.9,144.84,0.17]
[1718376531199,25.26,144.9,144.85,5.1086]
[1718376531503,25.26,144.9,144.83,0.51]
[1718376531504,25.26,144.9,144.88,0.17]
[1718376531682,43.9787,144.96,144.9,0.17]
[1718376531890,23.5591,144.96,144.9,0.17]
[1718376532197,21.0066,144.96,144.9,0.51]
[1718376532570,23.559,144.96,144.9,0.51]
[1718376533593,121.6959,145.01,144.93,0.17]
[1718376533817,25.26,144.98,144.93,0.17]
[1718376534002,5.1046,144.97,144.93,0.17]
[1718376534169,5.1046,144.97,144.9,0.17]
[1718376534170,25.26,144.94,144.9,0.34]
[1718376537991,25.26,144.94,144.9,5.4469]
[1718376538173,25.26,144.94,144.92,0.17]
[1718376538373,25.26,144.97,144.93,2.5528]
[1718376538580,25.26,144.97,144.94,0.68]
[1718376538775,25.26,144.97,144.92,0.17]
[1718376538977,2.5525,144.96,144.9,0.17]
[1718376539198,50.7831,144.97,144.9,0.51]
[1718376539496,7.6574,144.96,144.9,0.34]
[1718376539701,7.6574,144.96,144.89,0.34]
[1718376540014,50.7831,144.97,144.89,15.6617]
[1718376540298,25.26,144.97,144.91,5.1066]
[1718376540495,25.26,144.97,144.92,0.34]
[1718376540813,25.26,144.97,144.93,0.17]
[1718376541474,32.9168,144.97,144.92,0.34]
[1718376541683,32.9168,144.97,144.85,13.8238191]
[1718376541684,5.1048,144.96,144.85,13.8238191]
[1718376541888,22.9725,144.96,144.88,7.6612]
[1718376542104,2.5526,144.95,144.88,7.6612]
[1718376542406,2.5526,144.95,144.8,10.0]
[1718376542407,25.26,144.91,144.8,9.1664]
[1718376542573,25.26,144.91,144.82,18.933319]
[1718376542775,25.26,144.97,144.85,5.1085]
[1718376542974,25.26,144.92,144.82,20.78]
[1718376543209,25.26,144.92,144.89,15.3217]
[1718376543520,25.26,144.92,144.87,22.9852]
[1718376543811,25.26,144.92,144.88,0.17]
[1718376543995,25.26,144.92,144.87,0.51]
[1718376544178,25.26,144.92,144.87,8.1718]
[1718376544382,25.26,144.92,144.87,0.51]
[1718376544808,25.26,144.92,144.87,3.064]
[1718376545117,25.26,144.92,144.89,0.17]
[1718376545329,25.26,144.92,144.89,0.34]
[1718376545914,25.26,144.92,144.89,2.8936]
[1718376546123,25.26,144.92,144.89,0.34]
[1718376546330,25.26,144.92,144.88,0.17]
[1718376546627,32.9195,144.92,144.87,0.17]
[1718376546996,25.26,144.92,144.87,0.17]
[1718376547391,27.8131,144.92,144.87,0.17]
[1718376547606,25.26,144.92,144.87,0.17]
[1718376547820,25.26,144.88,144.82,2.5547]
[1718376548002,25.26,144.88,144.82,2.5548]
[1718376548702,25.26,144.88,144.84,2.5545]
[1718376548909,25.26,144.88,144.83,2.5546]
[1718376549322,25.26,144.88,144.82,17.8836]
[1718376549619,25.26,144.88,144.79,5.1106]
[1718376549821,25.26,144.88,144.76,8.9993]
[1718376550007,122.0928,144.92,144.76,8.9993]
[1718376550008,22.0928,144.92,144.86,2.554]
[1718376550210,25.26,144.9,144.87,2.5539]
[1718376550536,30.3671,144.9,144.82,5.1095]
[1718376550724,30.3671,144.9,144.77,20.78]
[1718376550725,25.26,144.9,144.77,20.78]
[1718376550898,25.26,144.9,144.84,0.17]
[1718376551103,25.26,144.9,144.84,0.68]
[1718376551404,25.26,144.9,144.86,0.17]
[1718376551615,25.26,144.9,144.88,15.3229]
[1718376551913,55.3725,144.97,144.89,18.2152]
[1718376552102,25.26,144.98,144.94,15.316]
[1718376552307,25.26,144.98,144.95,0.17]
[1718376552527,23.7826,145.02,144.95,0.34]
[1718376552736,7.655,145.01,144.95,0.34]
[1718376552932,22.9643,145.01,144.95,0.34]
[1718376553132,2.5516,145.01,144.95,0.34]
[1718376553312,23.7826,145.02,144.95,0.34]
[1718376553507,23.7826,145.02,144.97,0.17]
[1718376553508,21.2312,145.02,144.97,0.17]
[1718376553811,21.7435,145.07,145.03,5.1022]
[1718376554012,25.26,145.06,145.02,0.17]
[1718376554818,25.26,145.06,144.92,20.78]
[1718376555121,25.26,145.06,144.98,0.17]
[1718376555335,25.26,145.06,145.01,7.6543]
[1718376555515,25.26,145.06,145.04,0.17]
[1718376556017,0.2,145.09,145.04,0.34]
[1718376556225,0.2,145.09,145.04,0.17]
[1718376556739,2.5503,145.08,145.03,0.17]
[1718376557042,2.5508,145.06,144.99,2.7218]
[1718376557228,5.3003,145.09,145.01,18.0299]
[1718376557425,7.8505,145.09,145.03,0.17]
[1718376557626,5.101,145.07,145.0,0.17]
[1718376557922,107.6516,145.07,145.0,0.68]
[1718376558120,102.5506,145.07,145.0,3.2317]
[1718376558443,25.26,145.03,144.93,21.8288]
[1718376558747,27.8112,145.03,144.96,2.5523]
[1718376558945,25.26,145.03,144.95,2.5524]
[1718376559231,25.26,145.03,144.94,7.6579]
[1718376559232,12.7568,145.02,144.94,7.6579]
[1718376559417,50.7724,145.03,144.95,7.6576]
[1718376559614,2.5513,145.02,144.95,2.5525]
[1718376560227,125.26,145.04,144.93,21.8288]
[1718376560228,25.26,145.04,144.93,21.8288]
[1718376560436,25.26,145.04,144.95,22.9728]
[1718376560437,143.1174,145.04,144.95,22.9728]
[1718376560618,22.9614,145.03,144.95,2.5525]
[1718376560815,7.6549,145.01,144.93,5.1057]
[1718376561041,32.9153,145.0,144.92,22.9777]
[1718376561211,25.26,145.0,144.88,21.7803]
[1718376561519,2.5522,144.97,144.9,2.5534]
[1718376561724,15.3137,144.97,144.89,2.5536]
[1718376561912,40.5746,144.96,144.88,7.6611]
[1718376562108,5.1052,144.95,144.87,15.3239]
[1718376562307,5.1052,144.95,144.87,2.5539]
[1718376562308,5.1057,144.94,144.87,2.5539]
[1718376562536,25.26,144.96,144.89,12.7679]
[1718376562716,25.26,144.96,144.9,2.5534]
[1718376563138,25.26,144.96,144.92,2.553]
[1718376563439,25.26,144.96,144.91,2.5532]
[1718376563623,25.26,144.96,144.83,43.7178]
[1718376563933,25.26,144.96,144.87,20.78]
[1718376564146,25.26,144.96,144.94,0.17]
[1718376564344,25.26,145.0,144.94,8.3382]
[1718376564537,25.26,145.0,144.96,0.17]
[1718376564738,24.1789,145.03,144.96,23.6513]
[1718376564739,21.6276,145.03,144.96,23.6513]
[1718376564913,21.6276,145.03,144.98,5.274]
[1718376565122,21.6276,145.03,144.99,0.17]
[1718376565517,21.6276,145.03,145.0,0.17]
[1718376566352,25.26,145.04,145.0,0.17]
[1718376566525,25.26,145.04,145.0,15.65]
[1718376566720,22.2444,145.08,145.02,23.1314]
[1718376566920,15.6063526,145.1,145.02,25.6826]
[1718376567223,2.7501,145.09,145.03,0.17]
[1718376567424,0.2,145.09,145.03,0.34]
[1718376567662,0.2,145.09,145.04,0.17]
[1718376568156,0.2,145.09,145.04,0.34]
[1718376568329,0.2,145.09,145.05,0.34]
[1718376569225,0.2,145.09,145.05,0.17]
[1718376573743,25.26,145.07,144.92,15.67695729]
[1718376574061,25.26,145.07,145.01,2.5514]
[1718376574244,25.26,145.07,145.01,7.6544]
[1718376574552,25.26,145.07,145.01,2.5514]
[1718376574955,27.8105,145.07,144.93,30.5349]
[1718376575170,2.5506,145.06,144.99,7.6553]
[1718376575359,48.2146,145.07,144.99,15.3109]
[1718376575670,25.26,145.07,145.01,2.5515]
[1718376575864,25.26,145.07,145.04,2.7208]
[1718376576174,0.2,145.09,145.06,7.6517]
[1718376576341,0.2,145.09,145.05,26.0174]
[1718376576550,0.2,145.09,145.06,0.17]
[1718376578674,0.2,145.09,145.04,5.1019]
[1718376578842,0.2,145.09,145.04,7.6528]
[1718376579262,0.2,145.09,145.04,2.5509]
[1718376579462,0.2,145.09,145.05,2.5508]
[1718376579769,0.2,145.09,145.04,22.9587]
[1718376579972,0.2,145.09,145.07,0.17]
[1718376580151,0.2,145.09,145.05,0.34]
[1718376580545,0.2,145.09,145.04,7.6528]
[1718376580747,0.2,145.09,145.03,2.5511]
[1718376580969,25.26,145.08,145.03,2.5511]
[1718376581173,25.26,145.08,145.04,2.551]
[1718376581363,25.26,145.08,144.95,26.3709932]
[1718376581559,25.26,145.08,145.05,5.1016]
[1718376581886,25.26,145.08,145.06,0.34]
[1718376582177,25.26,145.08,145.06,2.8906]
[1718376582357,25.26,145.08,145.06,0.17]
[1718376582554,25.26,145.08,145.06,0.34]
[1718376583073,25.26,145.08,145.06,2.8906]
[1718376583274,25.26,145.08,145.06,0.34]
[1718376583453,25.26,145.08,145.06,2.8906]
[1718376583654,25.26,145.08,145.06,0.34]
[1718376583852,25.26,145.08,145.06,2.8906]
[1718376584083,21.26,145.08,145.06,0.34]
[1718376584574,21.26,145.08,145.06,2.8906]
[1718376584778,21.26,145.08,145.06,0.34]
[1718376584986,0.2,145.09,145.08,25.673]
[1718376585163,0.2,145.09,145.08,0.34]
[1718376586175,0.2,145.09,145.08,26.013]
[1718376586384,0.2,145.09,145.08,26.183]
[1718376586965,0.2,145.09,145.08,0.68]
[1718376587356,0.2,145.09,145.03,22.9601]
[1718376587558,25.26,145.08,145.02,2.5513]
[1718376587762,25.26,145.08,145.01,25.5144]
[1718376587970,27.8103,145.08,145.01,5.103]
[1718376588169,27.8103,145.08,144.99,12.7591]
[1718376588170,7.6515,145.07,144.99,12.7591]
[1718376588378,27.811,145.04,144.96,17.8663]
[1718376588679,38.0153,145.04,144.96,7.6569]
[1718376588895,50.7705,145.04,144.96,7.657]
[1718376589054,25.26,145.04,144.99,5.1036]
[1718376589259,25.26,145.04,144.99,2.5518]
[1718376589470,25.26,145.04,144.98,7.6558]
[1718376589669,25.26,145.04,144.98,2.5519]
[1718376589961,25.26,145.0,144.94,25.5272]
[1718376590198,25.26,145.0,144.95,2.5525]
[1718376590590,25.26,145.0,144.94,20.4219]
[1718376590796,25.26,145.0,144.95,2.5525]
[1718376591024,25.26,145.0,144.96,2.5523]
[1718376591208,25.26,145.0,144.96,5.1045]
[1718376591526,25.26,145.0,144.96,2.5523]
[1718376591809,25.26,145.0,144.94,2.5527]
[1718376592326,25.26,145.0,144.92,2.553]
[1718376592522,25.26,145.0,144.94,5.1053]
[1718376592730,25.26,145.0,144.94,22.9743]
[1718376593017,27.8117,145.0,144.93,2.5528]
[1718376593218,25.26,145.0,144.89,8.9557]
[1718376593430,25.26,145.0,144.97,0.17]
[1718376593929,25.26,145.0,144.99,2.5519]
[1718376594228,38.0153,145.04,144.97,0.17]
[1718376594526,32.9131,145.04,144.97,0.68]
[1718376594699,2.5512,145.03,144.97,0.68]
[1718376594892,22.5926,145.06,145.02,0.17]
[1718376595089,47.8526,145.06,145.02,0.34]
[1718376595815,47.8526,145.06,145.02,0.17]
[1718376596124,47.8526,145.06,145.01,5.4429]
[1718376596431,25.26,145.06,145.03,5.2722]
[1718376596634,25.26,145.06,145.03,2.7211]
[1718376596798,25.26,145.06,145.03,0.17]
[1718376596992,25.26,145.06,145.03,0.34]
[1718376597190,32.912,145.06,145.01,0.17]
[1718376597396,25.26,145.06,145.01,0.17]
[1718376597600,25.26,145.06,145.01,23.3034]
[1718376597806,25.26,145.06,145.0,0.17]
[1718376598007,25.26,145.06,145.01,0.17]
[1718376598420,25.26,145.06,145.01,23.4728]
[1718376598608,25.26,145.06,145.02,0.17]
[1718376598815,25.26,145.06,145.02,15.478]
[1718376599335,25.26,145.06,145.02,0.17]
[1718376599539,25.26,145.06,145.01,0.34]
[1718376600243,40.5639,145.06,145.0,0.34]
[1718376600542,32.9121,145.06,145.0,0.34]
[1718376600832,50.7668,145.06,145.0,0.34]
[1718376601019,5.1021,145.04,144.97,2.5522]
[1718376601226,25.26,145.02,144.97,2.5521]
[1718376601536,25.26,145.04,144.99,22.9667]
[1718376601707,25.26,145.04,144.99,2.5518]
[1718376601912,25.26,145.04,144.99,25.5187]
[1718376602127,25.26,145.04,144.99,22.9669]
[1718376602409,25.26,145.04,145.01,25.5147]
[1718376602610,25.26,145.04,145.01,7.6543]
[1718376602929,7.6538,145.03,144.93,7.6583]
[1718376603235,25.26,145.0,144.95,2.5524]
[1718376603444,25.26,145.0,144.89,8.9557]
[1718376603618,12.7604,144.98,144.91,2.5532]
[1718376603819,25.26,144.96,144.91,2.5532]
[1718376604337,25.26,144.96,144.85,8.7897]
[1718376604539,25.26,144.96,144.92,2.553]
[1718376604713,25.26,144.96,144.94,2.5527]
[1718376604913,25.26,144.96,144.92,2.553]
[1718376605118,25.26,144.96,144.93,2.5529]
[1718376605344,25.26,144.96,144.93,7.6587]
[1718376605639,25.26,144.96,144.92,2.5531]
[1718376605841,25.26,144.96,144.85,29.5697]
[1718376606020,25.26,144.96,144.94,5.1055]
[1718376606221,25.26,145.0,144.96,2.5524]
[1718376606429,25.26,145.0,144.94,2.5527]
[1718376606739,25.26,145.0,144.94,0.17]
[1718376606740,27.8117,145.0,144.94,0.17]
[1718376606943,27.8117,145.0,144.94,0.68]
[1718376607123,5.1038,144.99,144.92,2.553]
[1718376607430,5.1038,144.99,144.88,2.5537]
[1718376607431,25.5263,144.95,144.88,2.5537]
[1718376607642,25.5263,144.95,144.88,7.6613]
[1718376607643,2.5527,144.95,144.88,7.6613]
[1718376607858,27.8125,144.96,144.89,7.6607]
[1718376608154,25.26,144.96,144.9,22.981]
[1718376608313,25.26,144.96,144.91,2.5532]
[1718376608636,25.26,144.96,144.91,0.17]
[1718376608815,25.26,144.96,144.91,0.68]
[1718376609212,25.26,144.96,144.91,8.3397]
[1718376609419,25.26,144.98,144.93,25.5289]
[1718376609746,25.26,144.98,144.95,2.5525]
[1718376609952,25.26,144.98,144.96,0.34]
[1718376610140,25.26,144.98,144.94,0.17]
[1718376610141,30.7867,145.02,144.95,0.17]
[1718376610442,27.8117,145.0,144.95,0.17]
[1718376610625,12.7607,144.98,144.93,0.17]
[1718376610827,12.7607,144.98,144.91,0.17]
[1718376610828,2.5522,144.97,144.92,0.17]
[1718376611134,25.26,145.0,144.94,0.17]
[1718376611319,25.26,145.0,144.95,22.9729]
[1718376611516,25.26,145.0,144.95,5.105]
[1718376611743,25.26,145.0,144.95,7.6575]
[1718376611929,25.26,145.0,144.96,0.17]
[1718376612130,25.26,145.0,144.96,0.34]
[1718376612319,25.26,145.0,144.94,2.8926]
[1718376612517,2.5515,145.01,144.95,0.34]
[1718376613036,25.26,144.99,144.95,0.34]
[1718376613623,25.26,144.99,144.85,8.7897]
[1718376613838,7.6564,144.98,144.91,7.6597]
[1718376614036,5.1046,144.97,144.89,10.2143]
[1718376614240,5.1046,144.97,144.9,2.5534]
[1718376614241,15.3137,144.97,144.9,2.5534]
[1718376614550,25.5227,144.97,144.9,2.5534]
[1718376614927,5.1061,144.93,144.86,5.1083]
[1718376615243,25.26,144.91,144.85,7.6627]
[1718376615439,25.26,144.91,144.86,2.5541]
[1718376615747,25.26,144.91,144.83,21.4682]
[1718376615958,25.26,144.91,144.85,25.5427]
[1718376616120,25.26,144.91,144.85,2.5542]
[1718376616325,25.26,144.91,144.84,7.6636]
[1718376616647,25.26,144.91,144.84,22.9907]
[1718376616820,25.26,144.91,144.85,15.3259]
[1718376617144,25.26,144.91,144.81,8.6934]
[1718376617323,25.26,144.91,144.84,5.109]
[1718376617649,25.26,144.91,144.87,2.5539]
[1718376617819,25.26,144.91,144.81,8.6934]
[1718376618022,25.26,144.91,144.81,29.4734]
[1718376618262,47.0724,144.97,144.85,12.771]
[1718376618469,47.0724,144.97,144.81,29.4734]
[1718376618470,47.0724,144.97,144.91,2.5531]
[1718376618616,25.26,144.97,144.91,22.9793]
[1718376618943,32.9167,144.97,144.91,0.17]
[1718376619135,2.5524,144.96,144.91,0.34]
[1718376619343,27.8122,144.97,144.91,0.34]
[1718376619541,25.26,144.97,144.91,2.8933]
[1718376619746,27.8122,144.97,144.91,0.34]
[1718376619927,40.5735,144.97,144.91,0.34]
[1718376620116,32.9167,144.97,144.91,0.34]
[1718376620846,27.8122,144.97,144.91,0.34]
[1718376621058,40.5734,144.97,144.91,0.34]
[1718376622462,32.9167,144.97,144.91,0.34]
[1718376622666,32.9168,144.97,144.91,0.34]
[1718376622870,40.5735,144.97,144.91,0.34]
[1718376623025,2.5524,144.96,144.91,0.34]
[1718376623358,25.26,144.97,144.81,8.6934]
[1718376623555,17.8732,144.91,144.83,12.7732]
[1718376623744,25.26,144.93,144.81,8.6934]
[1718376623962,50.7901,144.93,144.86,2.5541]
[1718376624146,27.813,144.93,144.86,7.6623]
[1718376624461,25.26,144.93,144.87,2.554]
[1718376624629,25.26,144.93,144.88,22.9841]
[1718376624829,25.26,144.93,144.89,22.982]
[1718376625049,27.8123,144.97,144.9,12.7672]
[1718376625243,27.8122,144.97,144.91,2.5532]
[1718376625427,25.26,144.97,144.91,23.1494]